[Event "Titled Tuesday Blitz April 11 Early 2023"]
[White "Han, Yichen"]
[Black "Molina, Roberto Junio Brito"]
[WhiteFideId "1054430"]
[BlackFideId "2109450"]
[WhiteElo "2342"]
[BlackElo "2376"]
[Result "1/2-1/2"]
[Round "04"]
[TimeControl "180+2"]
[Date "2023.04.11"]
[WhiteClock "0:00:07"]
[BlackClock "0:01:06"]

1. d4 {[%clk 0:03:00]}  d5 {[%clk 0:02:57]} 2. c4 {[%clk 0:03:00]}  e6 {[%clk 0:02:55]} 3. Nf3 {[%clk 0:02:59]}  Nf6 {[%clk 0:02:55]} 4. g3 {[%clk 0:02:59]}  c6 {[%clk 0:02:54]} 5. Bg2 {[%clk 0:02:50]}  dxc4 {[%clk 0:02:54]} 6. a4 {[%clk 0:02:45]}  Nd5 {[%clk 0:02:51]} 7. O-O {[%clk 0:02:40]}  b5 {[%clk 0:02:51]} 8. e4 {[%clk 0:02:37]}  Nb4 {[%clk 0:02:46]} 9. b3 {[%clk 0:02:33]}  cxb3 {[%clk 0:02:43]} 10. Qxb3 {[%clk 0:02:32]}  a5 {[%clk 0:02:40]} 11. Nc3 {[%clk 0:02:28]}  Ba6 {[%clk 0:02:37]} 12. d5 {[%clk 0:02:17]}  bxa4 {[%clk 0:02:30]} 13. Nxa4 {[%clk 0:01:30]}  exd5 {[%clk 0:02:26]} 14. Re1 {[%clk 0:01:19]}  Be7 {[%clk 0:02:23]} 15. exd5 {[%clk 0:01:19]}  O-O {[%clk 0:02:21]} 16. dxc6 {[%clk 0:01:04]}  N8xc6 {[%clk 0:02:20]} 17. Bb2 {[%clk 0:00:54]}  Qd3 {[%clk 0:02:06]} 18. Qc3 {[%clk 0:00:40]}  Bf6 {[%clk 0:01:52]} 19. Qxd3 {[%clk 0:00:36]}  Nxd3 {[%clk 0:01:53]} 20. Bxf6 {[%clk 0:00:37]}  gxf6 {[%clk 0:01:46]} 21. Re3 {[%clk 0:00:30]}  Ncb4 {[%clk 0:01:43]} 22. Nb6 {[%clk 0:00:27]}  Rae8 {[%clk 0:01:15]} 23. Rxa5 {[%clk 0:00:25]}  Rxe3 {[%clk 0:01:15]} 24. fxe3 {[%clk 0:00:26]}  Re8 {[%clk 0:01:12]} 25. Nd7 {[%clk 0:00:23]}  Kg7 {[%clk 0:01:10]} 26. Nd4 {[%clk 0:00:21]}  Bc8 {[%clk 0:01:04]} 27. Nf5+ {[%clk 0:00:16]}  Kg6 {[%clk 0:01:04]} 28. Nh4+ {[%clk 0:00:15]}  Kg7 {[%clk 0:01:04]} 29. Nf5+ {[%clk 0:00:14]}  Kh8 {[%clk 0:00:38]} 30. Nxf6 {[%clk 0:00:12]}  Re5 {[%clk 0:00:34]} 31. Rxe5 {[%clk 0:00:08]}  Nxe5 {[%clk 0:00:35]} 32. Nd6 {[%clk 0:00:08]}  Be6 {[%clk 0:00:34]} 33. e4 {[%clk 0:00:07]}  Kg7 {[%clk 0:00:33]} 34. Nd5 {[%clk 0:00:07]}  Nbd3 {[%clk 0:00:32]} 35. Ne7 {[%clk 0:00:06]}  Nc5 {[%clk 0:00:30]} 36. Nef5+ {[%clk 0:00:06]}  Kf8 {[%clk 0:00:24]} 37. Ne3 {[%clk 0:00:05]}  Ke7 {[%clk 0:00:23]} 38. Ndf5+ {[%clk 0:00:06]}  Kf8 {[%clk 0:00:22]} 39. Nh4 {[%clk 0:00:06]}  Ba2 {[%clk 0:00:16]} 40. Nf3 {[%clk 0:00:06]}  Ng6 {[%clk 0:00:15]} 41. e5 {[%clk 0:00:05]}  Be6 {[%clk 0:00:13]} 42. Ng5 {[%clk 0:00:05]}  h6 {[%clk 0:00:13]} 43. Nxe6+ {[%clk 0:00:05]}  fxe6 {[%clk 0:00:14]} 44. Nc4 {[%clk 0:00:03]}  Nd7 {[%clk 0:00:14]} 45. Bh3 {[%clk 0:00:03]}  Ke7 {[%clk 0:00:14]} 46. Ne3 {[%clk 0:00:03]}  Ndxe5 {[%clk 0:00:15]} 47. Bg2 {[%clk 0:00:04]}  Kf6 {[%clk 0:00:15]} 48. h4 {[%clk 0:00:04]}  Nf7 {[%clk 0:00:15]} 49. Kf2 {[%clk 0:00:03]}  Nge5 {[%clk 0:00:15]} 50. g4 {[%clk 0:00:03]}  Nd6 {[%clk 0:00:15]} 51. Kg3 {[%clk 0:00:03]}  Ndc4 {[%clk 0:00:14]} 52. Nxc4 {[%clk 0:00:03]}  Nxc4 {[%clk 0:00:14]} 53. Kf4 {[%clk 0:00:03]}  e5+ {[%clk 0:00:13]} 54. Kg3 {[%clk 0:00:04]}  Ne3 {[%clk 0:00:13]} 55. Bf3 {[%clk 0:00:03]}  Nc2 {[%clk 0:00:13]} 56. Be4 {[%clk 0:00:03]}  Nd4 {[%clk 0:00:13]} 57. Bh1 {[%clk 0:00:03]}  Ne6 {[%clk 0:00:14]} 58. Ba8 {[%clk 0:00:03]}  Nc5 {[%clk 0:00:14]} 59. Bh1 {[%clk 0:00:03]}  Kg6 {[%clk 0:00:14]} 60. Bg2 {[%clk 0:00:03]}  Kg7 {[%clk 0:00:15]} 61. Bh1 {[%clk 0:00:04]}  Kf6 {[%clk 0:00:15]} 62. Bg2 {[%clk 0:00:04]}  Nd3 {[%clk 0:00:15]} 63. Bh1 {[%clk 0:00:04]}  Nf4 {[%clk 0:00:16]} 64. Ba8 {[%clk 0:00:05]}  Ne6 {[%clk 0:00:16]} 65. Bh1 {[%clk 0:00:04]}  Nd4 {[%clk 0:00:16]} 66. Ba8 {[%clk 0:00:04]}  Ke7 {[%clk 0:00:17]} 67. g5 {[%clk 0:00:03]}  hxg5 {[%clk 0:00:17]} 68. hxg5 {[%clk 0:00:04]}  Ke6 {[%clk 0:00:18]} 69. Kg4 {[%clk 0:00:04]}  Kf7 {[%clk 0:00:17]} 70. Bd5+ {[%clk 0:00:04]}  Kg6 {[%clk 0:00:18]} 71. Be4+ {[%clk 0:00:05]}  Kg7 {[%clk 0:00:19]} 72. Bd5 {[%clk 0:00:05]}  Kg6 {[%clk 0:00:18]} 73. Be4+ {[%clk 0:00:05]}  Kf7 {[%clk 0:00:19]} 74. Bd5+ {[%clk 0:00:06]}  Ke7 {[%clk 0:00:20]} 75. Be4 {[%clk 0:00:06]}  Ke6 {[%clk 0:00:19]} 76. Bd3 {[%clk 0:00:04]}  Kf7 {[%clk 0:00:19]} 77. Bc4+ {[%clk 0:00:04]}  Kg7 {[%clk 0:00:20]} 78. Bd3 {[%clk 0:00:05]}  Ne6 {[%clk 0:00:18]} 79. Kf5 {[%clk 0:00:05]}  Nxg5 {[%clk 0:00:18]} 80. Kxg5 {[%clk 0:00:04]}  e4 {[%clk 0:00:19]} 81. Be2 {[%clk 0:00:05]}  e3 {[%clk 0:00:19]} 82. Kf4 {[%clk 0:00:05]}  Kf6 {[%clk 0:00:20]} 83. Kg3 {[%clk 0:00:06]}  Ke5 {[%clk 0:00:21]} 84. Kg2 {[%clk 0:00:06]}  Kd4 {[%clk 0:00:22]} 85. Kf1 {[%clk 0:00:07]}  Kc3 {[%clk 0:00:22]} 86. Ke1 {[%clk 0:00:08]}  Kc2 {[%clk 0:00:23]} 87. Bf1 {[%clk 0:00:09]}  Kc3 {[%clk 0:00:23]} 88. Be2 {[%clk 0:00:09]}  Kd4 {[%clk 0:00:24]} 89. Bf1 {[%clk 0:00:09]}  e2 {[%clk 0:00:24]} 90. Bg2 {[%clk 0:00:09]}  Ke3 {[%clk 0:00:25]} 91. Ba8 {[%clk 0:00:10]}  Kd3 {[%clk 0:00:26]} 92. Bb7 {[%clk 0:00:11]}  Ke3 {[%clk 0:00:27]} 93. Ba6 {[%clk 0:00:12]}  Kf3 {[%clk 0:00:27]} 94. Bc8 {[%clk 0:00:13]}  Ke3 {[%clk 0:00:27]} 95. Bh3 {[%clk 0:00:13]}  Kf3 {[%clk 0:00:28]} 96. Bd7 {[%clk 0:00:13]}  Ke3 {[%clk 0:00:28]} 97. Be8 {[%clk 0:00:14]}  Kf3 {[%clk 0:00:29]} 98. Bf7 {[%clk 0:00:15]}  Ke3 {[%clk 0:00:30]} 99. Bg8 {[%clk 0:00:16]}  Kf3 {[%clk 0:00:30]} 100. Bh7 {[%clk 0:00:17]}  Ke3 {[%clk 0:00:31]} 101. Bg6 {[%clk 0:00:18]}  Kf3 {[%clk 0:00:32]} 102. Bh5+ {[%clk 0:00:18]}  Ke3 {[%clk 0:00:33]} 103. Bg4 {[%clk 0:00:19]}  Kf4 {[%clk 0:00:34]} 104. Bc8 {[%clk 0:00:19]}  Ke5 {[%clk 0:00:35]} 105. Bb7 {[%clk 0:00:20]}  Kd6 {[%clk 0:00:36]} 106. Ba8 {[%clk 0:00:21]}  Kc7 {[%clk 0:00:37]} 107. Bh1 {[%clk 0:00:21]}  Kd8 {[%clk 0:00:38]} 108. Bg2 {[%clk 0:00:22]}  Ke7 {[%clk 0:00:38]} 109. Bh3 {[%clk 0:00:22]}  Kf6 {[%clk 0:00:39]} 110. Bg4 {[%clk 0:00:23]}  Kg5 {[%clk 0:00:40]} 111. Bh3 {[%clk 0:00:24]}  Kh4 {[%clk 0:00:41]} 112. Bg2 {[%clk 0:00:25]}  Kg3 {[%clk 0:00:42]} 113. Ba8 {[%clk 0:00:25]}  Kf4 {[%clk 0:00:43]} 114. Bb7 {[%clk 0:00:26]}  Ke5 {[%clk 0:00:44]} 115. Bc8 {[%clk 0:00:27]}  Kd6 {[%clk 0:00:45]} 116. Bh3 {[%clk 0:00:07]}  Kc5 {[%clk 0:00:46]} 117. Bg2 {[%clk 0:00:08]}  Kb6 {[%clk 0:00:47]} 118. Bd5 {[%clk 0:00:08]}  Ka7 {[%clk 0:00:47]} 119. Bg8 {[%clk 0:00:09]}  Kb8 {[%clk 0:00:48]} 120. Bh7 {[%clk 0:00:10]}  Kc7 {[%clk 0:00:49]} 121. Bb1 {[%clk 0:00:11]}  Kd8 {[%clk 0:00:50]} 122. Ba2 {[%clk 0:00:12]}  Ke7 {[%clk 0:00:51]} 123. Bb3 {[%clk 0:00:13]}  Kf8 {[%clk 0:00:52]} 124. Bc2 {[%clk 0:00:13]}  Kg7 {[%clk 0:00:53]} 125. Be4 {[%clk 0:00:14]}  Kh6 {[%clk 0:00:54]} 126. Bb7 {[%clk 0:00:15]}  Kg5 {[%clk 0:00:55]} 127. Ba6 {[%clk 0:00:16]}  Kf6 {[%clk 0:00:56]} 128. Bc8 {[%clk 0:00:17]}  Ke7 {[%clk 0:00:56]} 129. Bh3 {[%clk 0:00:18]}  Kd6 {[%clk 0:00:57]} 130. Bg2 {[%clk 0:00:19]}  Ke5 {[%clk 0:00:58]} 131. Bh1 {[%clk 0:00:20]}  Kf4 {[%clk 0:00:59]} 132. Bc6 {[%clk 0:00:06]}  Kg3 {[%clk 0:01:00]} 133. Be8 {[%clk 0:00:07]}  Kh2 {[%clk 0:01:01]} 134. Ba4 {[%clk 0:00:07]}  Kg1 {[%clk 0:01:02]} 135. Bd1 {[%clk 0:00:07]}  Kh2 {[%clk 0:01:03]} 136. Bc2 {[%clk 0:00:07]}  Kg3 {[%clk 0:01:04]} 137. Bd3 {[%clk 0:00:07]}  Kh4 {[%clk 0:01:05]} 138. Bc4 {[%clk 0:00:06]}  Kg5 {[%clk 0:01:05]} 139. Ba6 {[%clk 0:00:07]}  Kf6 {[%clk 0:01:06]} 1/2-1/2


[Site "https://www.chess.com"]

[Event "Titled Tuesday Blitz April 11 Early 2023"]
[White "Kozin, Yuri"]
[Black "Mahdavi, Reza"]
[WhiteFideId "4129920"]
[BlackFideId "12595926"]
[WhiteElo "2558"]
[BlackElo "2357"]
[Result "0-1"]
[Round "04"]
[TimeControl "180+2"]
[Date "2023.04.11"]
[WhiteClock "0:00:05"]
[BlackClock "0:00:06"]

1. e4 {[%clk 0:03:00]}  c5 {[%clk 0:02:56]} 2. Nf3 {[%clk 0:03:00]}  e6 {[%clk 0:02:55]} 3. d4 {[%clk 0:03:01]}  cxd4 {[%clk 0:02:56]} 4. Nxd4 {[%clk 0:03:02]}  Nc6 {[%clk 0:02:56]} 5. Nc3 {[%clk 0:02:59]}  Qc7 {[%clk 0:02:40]} 6. Nb3 {[%clk 0:02:45]}  a6 {[%clk 0:02:36]} 7. Bd3 {[%clk 0:02:45]}  Nf6 {[%clk 0:02:37]} 8. f4 {[%clk 0:02:45]}  d6 {[%clk 0:02:37]} 9. Qf3 {[%clk 0:02:44]}  Be7 {[%clk 0:02:38]} 10. Be3 {[%clk 0:02:45]}  b5 {[%clk 0:02:38]} 11. O-O-O {[%clk 0:02:44]}  e5 {[%clk 0:02:36]} 12. f5 {[%clk 0:02:39]}  b4 {[%clk 0:02:36]} 13. Na4 {[%clk 0:02:37]}  Bb7 {[%clk 0:02:35]} 14. g4 {[%clk 0:02:10]}  h6 {[%clk 0:02:27]} 15. h4 {[%clk 0:02:09]}  Nd7 {[%clk 0:02:28]} 16. Qf2 {[%clk 0:01:54]}  Na5 {[%clk 0:02:20]} 17. Kb1 {[%clk 0:01:42]}  Nc4 {[%clk 0:02:12]} 18. Bxc4 {[%clk 0:01:26]}  Qxc4 {[%clk 0:02:13]} 19. Na5 {[%clk 0:01:26]}  Qxe4 {[%clk 0:02:07]} 20. Nxb7 {[%clk 0:01:22]}  Qxb7 {[%clk 0:02:08]} 21. Rhg1 {[%clk 0:01:09]}  Qc6 {[%clk 0:02:01]} 22. b3 {[%clk 0:01:04]}  Nf6 {[%clk 0:01:56]} 23. g5 {[%clk 0:00:49]}  hxg5 {[%clk 0:01:55]} 24. hxg5 {[%clk 0:00:49]}  Ne4 {[%clk 0:01:56]} 25. Qe1 {[%clk 0:00:47]}  Rh2 {[%clk 0:01:54]} 26. Rc1 {[%clk 0:00:41]}  Rc8 {[%clk 0:01:48]} 27. f6 {[%clk 0:00:32]}  gxf6 {[%clk 0:01:39]} 28. gxf6 {[%clk 0:00:31]}  Bxf6 {[%clk 0:01:40]} 29. Nb6 {[%clk 0:00:28]}  Rc7 {[%clk 0:00:26]} 30. Nc4 {[%clk 0:00:14]}  d5 {[%clk 0:00:25]} 31. Rg8+ {[%clk 0:00:13]}  Kd7 {[%clk 0:00:23]} 32. Nb6+ {[%clk 0:00:13]}  Ke6 {[%clk 0:00:24]} 33. Qxb4 {[%clk 0:00:10]}  Rxc2 {[%clk 0:00:21]} 34. Re8+ {[%clk 0:00:05]}  Qxe8 {[%clk 0:00:20]} 35. Rxc2 {[%clk 0:00:06]}  Rxc2 {[%clk 0:00:20]} 36. Kxc2 {[%clk 0:00:06]}  Qc6+ {[%clk 0:00:21]} 37. Kb2 {[%clk 0:00:07]}  d4 {[%clk 0:00:11]} 38. Bc1 {[%clk 0:00:07]}  Nd6 {[%clk 0:00:11]} 39. Nc4 {[%clk 0:00:07]}  Nxc4+ {[%clk 0:00:09]} 40. bxc4 {[%clk 0:00:08]}  e4 {[%clk 0:00:09]} 41. Kc2 {[%clk 0:00:07]}  d3+ {[%clk 0:00:09]} 42. Kd1 {[%clk 0:00:07]}  Bd4 {[%clk 0:00:07]} 43. Bf4 {[%clk 0:00:06]}  e3 {[%clk 0:00:06]} 44. Qb3 {[%clk 0:00:05]}  Qh1# {[%clk 0:00:06]} 0-1


[Site "https://www.chess.com"]

[Event "Titled Tuesday Blitz April 11 Early 2023"]
[White "Hambleton, Aman"]
[Black "Odegov, Artem"]
[WhiteFideId "2606577"]
[BlackFideId "34183644"]
[WhiteElo "2511"]
[BlackElo "2300"]
[Result "1-0"]
[Round "04"]
[TimeControl "180+2"]
[Date "2023.04.11"]
[WhiteClock "0:00:41"]
[BlackClock "0:00:01"]

1. d4 {[%clk 0:03:00]}  d5 {[%clk 0:02:53]} 2. Bf4 {[%clk 0:02:57]}  c5 {[%clk 0:02:50]} 3. e3 {[%clk 0:02:57]}  Nc6 {[%clk 0:02:50]} 4. c3 {[%clk 0:02:56]}  Nf6 {[%clk 0:02:49]} 5. Nd2 {[%clk 0:02:55]}  Bf5 {[%clk 0:02:49]} 6. Qb3 {[%clk 0:02:51]}  Qc8 {[%clk 0:02:34]} 7. dxc5 {[%clk 0:02:04]}  e5 {[%clk 0:02:01]} 8. Bg5 {[%clk 0:02:04]}  Be6 {[%clk 0:02:02]} 9. Bxf6 {[%clk 0:01:30]}  gxf6 {[%clk 0:02:03]} 10. e4 {[%clk 0:01:30]}  dxe4 {[%clk 0:01:48]} 11. Bc4 {[%clk 0:01:30]}  f5 {[%clk 0:01:49]} 12. g4 {[%clk 0:01:30]}  fxg4 {[%clk 0:00:15]} 13. Bxe6 {[%clk 0:01:27]}  Qxe6 {[%clk 0:00:13]} 14. Qxe6+ {[%clk 0:01:26]}  fxe6 {[%clk 0:00:13]} 15. Nxe4 {[%clk 0:01:27]}  O-O-O {[%clk 0:00:12]} 16. h3 {[%clk 0:01:17]}  gxh3 {[%clk 0:00:10]} 17. Rxh3 {[%clk 0:01:18]}  Be7 {[%clk 0:00:08]} 18. Nf3 {[%clk 0:01:14]}  h5 {[%clk 0:00:04]} 19. Ke2 {[%clk 0:01:13]}  Rdf8 {[%clk 0:00:03]} 20. Rah1 {[%clk 0:01:12]}  Rhg8 {[%clk 0:00:02]} 21. Rxh5 {[%clk 0:01:10]}  Rf5 {[%clk 0:00:02]} 22. Rh8 {[%clk 0:01:03]}  Rxh8 {[%clk 0:00:03]} 23. Rxh8+ {[%clk 0:01:04]}  Kc7 {[%clk 0:00:03]} 24. b4 {[%clk 0:01:02]}  a6 {[%clk 0:00:03]} 25. Rh7 {[%clk 0:00:55]}  Kd7 {[%clk 0:00:01]} 26. a4 {[%clk 0:00:40]}  Rf4 {[%clk 0:00:02]} 27. Ke3 {[%clk 0:00:40]}  a5 {[%clk 0:00:01]} 28. b5 {[%clk 0:00:41]}  Nd8 {[%clk 0:00:02]} 29. Nxe5+ {[%clk 0:00:41]}  Ke8 {[%clk 0:00:01]} 30. Kxf4 {[%clk 0:00:41]} 1-0


[Site "https://www.chess.com"]

[Event "Titled Tuesday Blitz April 11 Early 2023"]
[White "Dehtiarov, Roman"]
[Black "Bilan, Danila"]
[WhiteFideId "14186640"]
[BlackFideId "24161918"]
[WhiteElo "2189"]
[BlackElo "2182"]
[Result "1-0"]
[Round "04"]
[TimeControl "180+2"]
[Date "2023.04.11"]
[WhiteClock "0:01:47"]
[BlackClock "0:00:03"]

1. d4 {[%clk 0:03:00]}  d5 {[%clk 0:02:56]} 2. c4 {[%clk 0:03:00]}  c6 {[%clk 0:02:56]} 3. Nc3 {[%clk 0:02:59]}  Nf6 {[%clk 0:02:56]} 4. Nf3 {[%clk 0:02:51]}  e6 {[%clk 0:02:55]} 5. Bg5 {[%clk 0:02:52]}  Nbd7 {[%clk 0:02:55]} 6. e3 {[%clk 0:02:48]}  Be7 {[%clk 0:02:37]} 7. Qc2 {[%clk 0:02:40]}  b6 {[%clk 0:02:31]} 8. Bd3 {[%clk 0:02:39]}  dxc4 {[%clk 0:02:29]} 9. Bxc4 {[%clk 0:02:39]}  Nd5 {[%clk 0:02:29]} 10. Bxe7 {[%clk 0:02:39]}  Qxe7 {[%clk 0:02:29]} 11. e4 {[%clk 0:02:39]}  Nxc3 {[%clk 0:02:24]} 12. bxc3 {[%clk 0:02:40]}  Bb7 {[%clk 0:02:22]} 13. a4 {[%clk 0:02:40]}  c5 {[%clk 0:02:20]} 14. O-O {[%clk 0:02:36]}  O-O {[%clk 0:02:14]} 15. d5 {[%clk 0:02:35]}  exd5 {[%clk 0:02:07]} 16. exd5 {[%clk 0:02:36]}  Nf6 {[%clk 0:01:53]} 17. Rfe1 {[%clk 0:02:35]}  Qd6 {[%clk 0:01:42]} 18. Rad1 {[%clk 0:02:34]}  Rfe8 {[%clk 0:01:33]} 19. Bd3 {[%clk 0:02:32]}  g6 {[%clk 0:01:25]} 20. c4 {[%clk 0:02:31]}  Rxe1+ {[%clk 0:01:24]} 21. Rxe1 {[%clk 0:02:32]}  Re8 {[%clk 0:01:23]} 22. Qc1 {[%clk 0:02:31]}  Kg7 {[%clk 0:01:03]} 23. h3 {[%clk 0:02:30]}  Rxe1+ {[%clk 0:00:50]} 24. Qxe1 {[%clk 0:02:31]}  Nd7 {[%clk 0:00:49]} 25. g4 {[%clk 0:02:25]}  Qf4 {[%clk 0:00:37]} 26. Kg2 {[%clk 0:02:25]}  Ba6 {[%clk 0:00:28]} 27. Qe7 {[%clk 0:02:20]}  Nf8 {[%clk 0:00:14]} 28. d6 {[%clk 0:02:09]}  Bxc4 {[%clk 0:00:09]} 29. Bxc4 {[%clk 0:02:08]}  Qxc4 {[%clk 0:00:10]} 30. d7 {[%clk 0:02:08]}  Ne6 {[%clk 0:00:09]} 31. d8=Q {[%clk 0:02:04]}  Nxd8 {[%clk 0:00:10]} 32. Qxd8 {[%clk 0:02:05]}  Qxa4 {[%clk 0:00:10]} 33. g5 {[%clk 0:02:04]}  Qe4 {[%clk 0:00:10]} 34. Qf6+ {[%clk 0:02:04]}  Kg8 {[%clk 0:00:09]} 35. Kg3 {[%clk 0:02:03]}  Qa8 {[%clk 0:00:09]} 36. Ne5 {[%clk 0:02:03]}  Qf8 {[%clk 0:00:09]} 37. h4 {[%clk 0:02:02]}  b5 {[%clk 0:00:07]} 38. h5 {[%clk 0:02:03]}  gxh5 {[%clk 0:00:06]} 39. Kh4 {[%clk 0:02:03]}  b4 {[%clk 0:00:07]} 40. Nd7 {[%clk 0:02:02]}  Qe8 {[%clk 0:00:04]} 41. Qf5 {[%clk 0:01:50]}  Qe2 {[%clk 0:00:04]} 42. Nf6+ {[%clk 0:01:50]}  Kf8 {[%clk 0:00:04]} 43. Qxc5+ {[%clk 0:01:50]}  Kg7 {[%clk 0:00:04]} 44. Nxh5+ {[%clk 0:01:49]}  Kg6 {[%clk 0:00:03]} 45. Nf4+ {[%clk 0:01:47]} 1-0


[Site "https://www.chess.com"]

[Event "Titled Tuesday Blitz April 11 Early 2023"]
[White "Liyanage, Ranindu Dilshan"]
[Black "Sharapov, Evgeny"]
[WhiteFideId "9915834"]
[BlackFideId "14103133"]
[WhiteElo "2199"]
[BlackElo "2367"]
[Result "1-0"]
[Round "04"]
[TimeControl "180+2"]
[Date "2023.04.11"]
[WhiteClock "0:01:57"]
[BlackClock "0:02:13"]

1. e4 {[%clk 0:03:00]}  c5 {[%clk 0:02:59]} 2. Nc3 {[%clk 0:03:00]}  Nc6 {[%clk 0:02:59]} 3. Bb5 {[%clk 0:03:00]}  Nd4 {[%clk 0:02:59]} 4. Bc4 {[%clk 0:03:00]}  e6 {[%clk 0:02:57]} 5. Nge2 {[%clk 0:03:00]}  Nf6 {[%clk 0:02:56]} 6. O-O {[%clk 0:02:59]}  a6 {[%clk 0:02:55]} 7. a4 {[%clk 0:02:59]}  Qc7 {[%clk 0:02:55]} 8. d3 {[%clk 0:02:58]}  Be7 {[%clk 0:02:55]} 9. h3 {[%clk 0:02:46]}  O-O {[%clk 0:02:54]} 10. Nxd4 {[%clk 0:02:44]}  cxd4 {[%clk 0:02:54]} 11. Ne2 {[%clk 0:02:44]}  d5 {[%clk 0:02:53]} 12. exd5 {[%clk 0:02:44]}  exd5 {[%clk 0:02:53]} 13. Bb3 {[%clk 0:02:43]}  Qc5 {[%clk 0:02:50]} 14. Bf4 {[%clk 0:02:41]}  Nd7 {[%clk 0:02:36]} 15. Qd2 {[%clk 0:02:41]}  Bf6 {[%clk 0:02:35]} 16. Rfe1 {[%clk 0:02:36]}  b6 {[%clk 0:02:32]} 17. Ng3 {[%clk 0:02:32]}  g6 {[%clk 0:02:29]} 18. Bh6 {[%clk 0:02:20]}  Bg7 {[%clk 0:02:27]} 19. Bxg7 {[%clk 0:02:18]}  Kxg7 {[%clk 0:02:27]} 20. Qg5 {[%clk 0:02:18]}  Bb7 {[%clk 0:02:13]} 21. Re7 {[%clk 0:01:57]} 1-0


[Site "https://www.chess.com"]

[Event "Titled Tuesday Blitz April 11 Early 2023"]
[White "Rohith Krishna S"]
[Black "Demin, Vladimir"]
[WhiteFideId "46617051"]
[BlackFideId "4167457"]
[WhiteElo "2270"]
[BlackElo "2551"]
[Result "1-0"]
[Round "04"]
[TimeControl "180+2"]
[Date "2023.04.11"]
[WhiteClock "0:01:13"]
[BlackClock "0:01:13"]

1. d4 {[%clk 0:03:00]}  d5 {[%clk 0:02:59]} 2. c4 {[%clk 0:02:59]}  e6 {[%clk 0:02:59]} 3. Nc3 {[%clk 0:02:56]}  Nf6 {[%clk 0:02:57]} 4. Bg5 {[%clk 0:02:53]}  c6 {[%clk 0:02:55]} 5. e3 {[%clk 0:02:51]}  h6 {[%clk 0:02:53]} 6. Bh4 {[%clk 0:02:50]}  Nbd7 {[%clk 0:02:52]} 7. Nf3 {[%clk 0:02:42]}  g5 {[%clk 0:02:50]} 8. Bg3 {[%clk 0:02:35]}  Ne4 {[%clk 0:02:50]} 9. Nxe4 {[%clk 0:02:21]}  dxe4 {[%clk 0:02:49]} 10. Nd2 {[%clk 0:02:22]}  Bb4 {[%clk 0:02:42]} 11. h4 {[%clk 0:02:19]}  e5 {[%clk 0:02:26]} 12. hxg5 {[%clk 0:02:15]}  Qxg5 {[%clk 0:02:26]} 13. Rh5 {[%clk 0:02:03]}  Bxd2+ {[%clk 0:02:21]} 14. Kxd2 {[%clk 0:02:03]}  Qg6 {[%clk 0:02:14]} 15. Be2 {[%clk 0:01:34]}  exd4 {[%clk 0:02:08]} 16. exd4 {[%clk 0:01:35]}  Nf6 {[%clk 0:02:06]} 17. Re5+ {[%clk 0:01:33]}  Be6 {[%clk 0:02:06]} 18. Qa4 {[%clk 0:01:33]}  O-O {[%clk 0:01:58]} 19. Rh1 {[%clk 0:01:30]}  Rfd8 {[%clk 0:01:55]} 20. Kc3 {[%clk 0:01:30]}  e3 {[%clk 0:01:24]} 21. Bd3 {[%clk 0:01:27]}  Qg4 {[%clk 0:01:24]} 22. fxe3 {[%clk 0:01:14]}  Qxg3 {[%clk 0:01:23]} 23. Rxh6 {[%clk 0:01:14]}  Qxe3 {[%clk 0:01:13]} 24. Rxe3 {[%clk 0:01:13]} 1-0


[Site "https://www.chess.com"]

[Event "Titled Tuesday Blitz April 11 Early 2023"]
[White "Kokoszczynski, Jan"]
[Black "Wong, Yinn Long"]
[WhiteFideId "1174460"]
[BlackFideId "5707684"]
[WhiteElo "2139"]
[BlackElo "2271"]
[Result "0-1"]
[Round "04"]
[TimeControl "180+2"]
[Date "2023.04.11"]
[WhiteClock "0:00:08"]
[BlackClock "0:00:08"]

1. d4 {[%clk 0:03:00]}  e6 {[%clk 0:02:58]} 2. c4 {[%clk 0:03:01]}  Bb4+ {[%clk 0:02:58]} 3. Nd2 {[%clk 0:03:00]}  Nf6 {[%clk 0:02:55]} 4. Nf3 {[%clk 0:03:00]}  O-O {[%clk 0:02:49]} 5. a3 {[%clk 0:03:00]}  Be7 {[%clk 0:02:49]} 6. e4 {[%clk 0:03:00]}  d5 {[%clk 0:02:49]} 7. cxd5 {[%clk 0:02:53]}  exd5 {[%clk 0:02:49]} 8. e5 {[%clk 0:02:54]}  Ne4 {[%clk 0:02:48]} 9. Bd3 {[%clk 0:02:54]}  Bf5 {[%clk 0:02:42]} 10. Qe2 {[%clk 0:02:54]}  Nxd2 {[%clk 0:02:20]} 11. Bxd2 {[%clk 0:02:55]}  Bxd3 {[%clk 0:02:20]} 12. Qxd3 {[%clk 0:02:55]}  c5 {[%clk 0:02:08]} 13. O-O {[%clk 0:02:45]}  Nc6 {[%clk 0:02:06]} 14. dxc5 {[%clk 0:02:38]}  Bxc5 {[%clk 0:02:07]} 15. Rac1 {[%clk 0:02:38]}  Qe7 {[%clk 0:01:54]} 16. Qxd5 {[%clk 0:02:31]}  Bb6 {[%clk 0:01:55]} 17. Qe4 {[%clk 0:02:23]}  h6 {[%clk 0:01:52]} 18. Be3 {[%clk 0:02:20]}  Qe6 {[%clk 0:01:50]} 19. Bxb6 {[%clk 0:02:17]}  axb6 {[%clk 0:01:51]} 20. Rfe1 {[%clk 0:02:01]}  Rfd8 {[%clk 0:01:48]} 21. h3 {[%clk 0:01:59]}  Rd5 {[%clk 0:01:45]} 22. Re2 {[%clk 0:01:38]}  Rad8 {[%clk 0:01:45]} 23. Rce1 {[%clk 0:01:34]}  Rd3 {[%clk 0:01:42]} 24. Re3 {[%clk 0:01:27]}  Rd1 {[%clk 0:01:37]} 25. Rxd1 {[%clk 0:01:21]}  Rxd1+ {[%clk 0:01:38]} 26. Re1 {[%clk 0:01:22]}  Rd5 {[%clk 0:01:35]} 27. Qf4 {[%clk 0:01:17]}  Rd3 {[%clk 0:01:32]} 28. Qc1 {[%clk 0:01:10]}  Qd5 {[%clk 0:01:16]} 29. Qc2 {[%clk 0:01:00]}  Nd8 {[%clk 0:00:52]} 30. Qc8 {[%clk 0:00:55]}  g6 {[%clk 0:00:42]} 31. Rc1 {[%clk 0:00:36]}  Kg7 {[%clk 0:00:31]} 32. Qc4 {[%clk 0:00:35]}  Qd7 {[%clk 0:00:25]} 33. Qc7 {[%clk 0:00:28]}  Qd5 {[%clk 0:00:23]} 34. Qe7 {[%clk 0:00:14]}  Rd1+ {[%clk 0:00:21]} 35. Rxd1 {[%clk 0:00:14]}  Qxd1+ {[%clk 0:00:22]} 36. Kh2 {[%clk 0:00:15]}  Ne6 {[%clk 0:00:22]} 37. Qf6+ {[%clk 0:00:15]}  Kg8 {[%clk 0:00:22]} 38. h4 {[%clk 0:00:14]}  Ng7 {[%clk 0:00:16]} 39. e6 {[%clk 0:00:11]}  Nxe6 {[%clk 0:00:15]} 40. Ne5 {[%clk 0:00:12]}  Nd8 {[%clk 0:00:12]} 41. h5 {[%clk 0:00:12]}  Qxh5+ {[%clk 0:00:12]} 42. Kg1 {[%clk 0:00:12]}  Qd1+ {[%clk 0:00:12]} 43. Kh2 {[%clk 0:00:12]}  Qd5 {[%clk 0:00:13]} 44. f4 {[%clk 0:00:11]}  b5 {[%clk 0:00:11]} 45. Qe7 {[%clk 0:00:10]}  Nc6 {[%clk 0:00:09]} 46. Qe8+ {[%clk 0:00:08]}  Kg7 {[%clk 0:00:08]} 47. Qe7 {[%clk 0:00:08]}  Nxe7 {[%clk 0:00:08]} 0-1


[Site "https://www.chess.com"]